[Event "European Women Rapid-ch 2023"]
[Site "Monaco"]
[Date "2024.01.13"]
[Round "1.9"]
[White "Ushenina, Anna"]
[Black "Piddubna, Bozhena"]
[Result "1-0"]
[ECO "D03"]
[WhiteElo "2415"]
[BlackElo "2035"]
[Annotator "TA"]
[PlyCount "75"]
[EventDate "2023.12.19"]
[EventType "swiss"]
[EventCountry "MNC"]
[SourceTitle "playchess.com"]
[Source "ChessBase"]
[SourceQuality "1"]
[TimeControl "900+10"]

{[%evp 13,75,0,0,0,0,-6,-5,-6,-10,-6,-6,-7,-8,-18,-20,-12,6,0,0,0,0,0,0,0,0,0,1,2,0,0,0,0,5,0,0,0,0,0,5,8,29,16,31,11,29,14,23,5,16,23,12,10,357,330,495,514,558,525,528,518,518,495,29989,29990]} 1. d4 {[%emt 0:00:02]} Nf6 {[%emt 0:00:01]} 2. Nf3 {[%emt 0:00:04]} e6 {[%emt 0:00:02]} 3. Bg5 {[%emt 0:00:02]} d5 {[%emt 0:00:14]} 4. e3 {[%emt 0:00:04]} Nbd7 {[%emt 0:00:02]} 5. Nbd2 {[%emt 0:00:11]} Be7 {[%emt 0:00:19]} 6. Bd3 {[%emt 0:00:03]} h6 {[%emt 0:00:04]} 7. Bh4 {[%emt 0:00:06]} O-O {[%emt 0:00:04]} 8. c3 {[%emt 0:00:20]} b6 {[%emt 0:00:17]} 9. Qe2 {[%emt 0:01:34]} Bb7 {[%emt 0:00:05]} 10. O-O {[%emt 0:00:06] The position is equal.} Ne4 {[%emt 0:01:32]} 11. Bxe7 {[%emt 0:00:20]} Qxe7 {[%emt 0:00:02]} 12. Rac1 {[%emt 0:02:44]} Rac8 {[%emt 0:01:38]} 13. Ba6 {[%emt 0:00:58]} Bxa6 {[%emt 0:00:47]} 14. Qxa6 {[%emt 0:00:02]} Ndf6 {[%emt 0:00:01]} 15. c4 {[%emt 0:00:42]} c5 {[%emt 0:01:47]} 16. cxd5 {[%emt 0:00:15]} Nxd2 {[%emt 0:00:19]} 17. Nxd2 {[%emt 0:00:02]} Nxd5 {[%emt 0:00:02]} 18. a3 {[%emt 0:01:03] Repels Nb4} Rc7 {[%emt 0:00:23]} 19. dxc5 {[%emt 0:00:29]} Rxc5 {[%emt 0:00:07]} 20. Nb3 {[%emt 0:00:43]} Rxc1 {[%emt 0:02:24]} 21. Rxc1 {[%emt 0:00:01]} Qg5 {[%emt 0:00:11][%cal Od5e3]} 22. Qc4 {[%emt 0:01:21]} Rd8 {[%emt 0:02:17]} 23. h3 {[%emt 0:00:23]} Rd7 {[%emt 0:02:24]} 24. Qc8+ {[%emt 0:01:11]} Rd8 {[%emt 0:00:02]} 25. Qc4 {[%emt 0:00:13]} Rd7 {[%emt 0:00:02]} 26. Qe4 {[%emt 0:00:17]} Rd8 {[%emt 0:00:51]} 27. Nd4 {[%emt 0:00:33]} Nf6 {[%emt 0:02:10]} 28. Qc2 {[%emt 0:03:25]} Nd5 {[%emt 0:00:25][%cal Od5e3] [#] Strongly threatening ...Nxe3!} 29. Nf3 {[%emt 0:00:20]} Qf6 {[%emt 0:00:34]} ({Reject} 29... Nxe3 $6 30. fxe3 Qxe3+ 31. Kh1 $16) 30. Rd1 {[%emt 0:00:08]} g6 {[%emt 0:00:32][%cal Bg7g6,Bg6g5][%mdl 32]} 31. Rd4 {[%emt 0:00:19]} Kg7 {[%emt 0:00:15]} 32. e4 {[%emt 0:01:02][%cal Be3e4,Be4e5][%mdl 32]} Nf4 $2 {[%emt 0:00:18][%mdl 8192] This move loses the game for Black.} (32... Nc7 $1 $11 {and Black stays safe.}) 33. e5 $18 {[%emt 0:00:08]} Qe7 {[%emt 0:00:04]} (33... Nxh3+ {was necessary.} 34. Kh2 (34. gxh3 Qe7 $18) 34... Qe7) 34. Rxf4 {[%emt 0:00:03]} g5 {[%emt 0:00:03]} 35. Rd4 {[%emt 0:00:05]} Rxd4 {[%emt 0:00:10]} 36. Nxd4 {[%emt 0:00:01]} Qd7 {[%emt 0:00:00]} 37. Qe4 {[%emt 0:00:17]} Qa4 {[%emt 0:00:07] [#]} (37... Qc8 $18 38. Ne2 Qh8) 38. Nxe6+ $1 {[%emt 0:00:04] Weighted Error Value: White=0.06 (flawless) /Black=0.49.  Loses game:     	---       	Black=1      Mistake:       	---       	Black=2      OK:         	White=9     	Black=13     Best:        	White=2     	---} 1-0

[Event "European Women Rapid-ch 2023"]
[Site "Monaco"]
[Date "2024.01.13"]
[Round "1.10"]
[White "Galvan Cipriani, Viviana"]
[Black "Javakhishvili, Lela"]
[Result "0-1"]
[ECO "D35"]
[WhiteElo "2104"]
[BlackElo "2433"]
[Annotator "RC"]
[PlyCount "52"]
[EventDate "2023.12.19"]
[EventType "swiss"]
[EventCountry "MNC"]
[SourceTitle "playchess.com"]
[Source "ChessBase"]
[SourceQuality "1"]
[TimeControl "900+10"]

1. c4 {[%emt 0:00:02]} e6 {[%emt 0:00:06]} 2. Nf3 {[%emt 0:00:04]} d5 {[%emt 0:00:03]} 3. d4 {[%emt 0:00:08]} Nf6 {[%emt 0:00:04]} 4. Nc3 {[%emt 0:00:06]} Nbd7 {[%emt 0:00:06]} 5. Bf4 {[%emt 0:01:41]} Bb4 {[%emt 0:00:34]} 6. cxd5 {[%emt 0:00:14]} exd5 {[%emt 0:00:03]} 7. Qc2 {[%emt 0:00:26]} Ne4 {[%emt 0:00:26]} 8. a3 {[%emt 0:00:07]} Bxc3+ {[%emt 0:00:13]} 9. bxc3 {[%emt 0:00:04]} c5 {[%emt 0:00:37]} 10. e3 {[%emt 0:00:15]} Qa5 {[%emt 0:01:11]} 11. Rc1 {[%emt 0:00:06]} Ndf6 {[%emt 0:00:33]} 12. Qb2 {[%emt 0:00:34]} O-O {[%emt 0:00:36]} 13. Be2 {[%emt 0:00:18]} b6 {[%emt 0:01:52]} 14. O-O {[%emt 0:00:07]} Ba6 {[%emt 0:00:08]} 15. Rfe1 {[%emt 0:01:53]} Rac8 {[%emt 0:00:16]} 16. h3 {[%emt 0:00:48]} cxd4 {[%emt 0:00:42]} 17. cxd4 {[%emt 0:00:18]} Rxc1 {[%emt 0:00:26]} 18. Qxc1 {[%emt 0:00:21]} Rc8 {[%emt 0:00:03]} 19. Qb2 {[%emt 0:00:06]} Nc3 {[%emt 0:01:47]} 20. Bxa6 {[%emt 0:01:01]} Qxa6 {[%emt 0:00:02]} 21. Kh2 {[%emt 0:00:11]} Nfe4 {[%emt 0:00:52]} 22. Rc1 {[%emt 0:01:18]} h6 {[%emt 0:01:23]} 23. Ne1 {[%emt 0:06:03]} Rc4 {[%emt 0:02:13]} 24. f3 {[%emt 0:01:39]} Na4 {[%emt 0:00:03]} 25. Qe2 {[%emt 0:00:09]} Nec3 {[%emt 0:00:08]} 26. e4 {[%emt 0:01:05]} Nxe2 {[%emt 0:00:05]} 0-1

[Event "European Women Rapid-ch 2023"]
[Site "Monaco"]
[Date "2024.01.13"]
[Round "1.11"]
[White "Hoang, Thanh Trang"]
[Black "Follana Albelda, Lucia"]
[Result "1-0"]
[ECO "E14"]
[WhiteElo "2382"]
[BlackElo "1885"]
[Annotator "TA"]
[PlyCount "57"]
[EventDate "2023.12.19"]
[EventType "swiss"]
[EventCountry "MNC"]
[SourceTitle "playchess.com"]
[Source "ChessBase"]
[SourceQuality "1"]
[TimeControl "900+10"]

{[%evp 21,57,6,30,24,68,55,62,53,88,79,168,175,387,401,488,479,441,428,417,417,423,415,497,521,507,517,500,451,550,547,606,619,1085,892,1108,1092,1156,1153]} 1. d4 {[%emt 0:00:04]} Nf6 {[%emt 0:00:01]} 2. Nf3 {[%emt 0:00:04]} b6 {[%emt 0:00:02]} 3. e3 {[%emt 0:00:11]} Bb7 {[%emt 0:00:03]} 4. Bd3 {[%emt 0:00:07]} e6 {[%emt 0:00:35]} 5. O-O {[%emt 0:00:08]} Be7 {[%emt 0:00:13]} 6. c4 {[%emt 0:00:15]} O-O {[%emt 0:00:14]} 7. Nc3 {[%emt 0:00:10]} d5 {[%emt 0:00:02]} 8. cxd5 {[%emt 0:01:08]} exd5 {[%emt 0:00:06]} 9. b3 {[%emt 0:00:05]} Nbd7 {[%emt 0:00:39]} 10. Bb2 {[%emt 0:00:08]} c5 {[%emt 0:00:27]} 11. Rc1 {[%emt 0:00:21]} Rc8 {[%emt 0:02:07]} 12. dxc5 {[%emt 0:00:44]} Nxc5 {[%emt 0:01:01]} 13. Bf5 {[%emt 0:00:40]} Ra8 {[%emt 0:01:38]} 14. Qc2 {[%emt 0:01:26] White is more active. White is slightly better.} Qb8 {[%emt 0:05:25]} 15. Rfd1 {[%emt 0:01:06]} Rd8 {[%emt 0:00:03]} (15... g6 $16 {was worth a try.}) 16. Nb5 $18 {[%emt 0:00:39]} a6 $2 {[%emt 0:00:48] [#]} (16... Bc6) 17. Be5 {[%emt 0:00:20]} Bd6 {[%emt 0:00:45]} 18. Nxd6 {[%emt 0:00:42]} Rxd6 {[%emt 0:00:05]} 19. Bxd6 {[%emt 0:00:41]} Qxd6 {[%emt 0:00:02]} 20. b4 {[%emt 0:00:32]} Ne6 {[%emt 0:00:22]} 21. Bxe6 {[%emt 0:00:19]} fxe6 {[%emt 0:00:05]} 22. Qc7 {[%emt 0:00:04] White is clearly winning.} Qxc7 {[%emt 0:00:26]} 23. Rxc7 {[%emt 0:00:01]} Rb8 {[%emt 0:00:18]} 24. Re7 {[%emt 0:02:54]} Bc8 {[%emt 0:00:21]} 25. Rc1 {[%emt 0:00:09] [#] And now Ne5 would win.} Kf8 {[%emt 0:01:11]} 26. Rcc7 {[%emt 0:00:07]} Ne8 {[%emt 0:00:59]} 27. Rf7+ {[%emt 0:00:44]} Kg8 {[%emt 0:00:01]} 28. Rce7 {[%emt 0:00:04]} e5 {[%emt 0:01:27]} 29. Nxe5 {[%emt 0:00:10] Black did not feel at home in the position after the opening.   Weighted Error Value: White=0.05 (flawless) /Black=0.57.  Mistake:       	---       	Black=2      Inaccurate:     	---       	Black=3      OK:         	White=7     	Black=3      Best:        	White=2     	---} (29. Rxe8+ Kxf7 30. Rxe5 h6 31. Rxd5 Be6 $18) 1-0

[Event "European Women Rapid-ch 2023"]
[Site "Monaco"]
[Date "2024.01.13"]
[Round "1.12"]
[White "Bellaiche, Elise"]
[Black "Wagner, Dinara"]
[Result "0-1"]
[ECO "B50"]
[WhiteElo "2012"]
[BlackElo "2459"]
[Annotator "RC"]
[PlyCount "92"]
[EventDate "2023.12.19"]
[EventType "swiss"]
[EventCountry "MNC"]
[SourceTitle "playchess.com"]
[Source "ChessBase"]
[SourceQuality "1"]
[TimeControl "900+10"]

1. e4 {[%emt 0:00:01]} c5 {[%emt 0:00:01]} 2. Nf3 {[%emt 0:00:02]} d6 {[%emt 0:00:01]} 3. c3 {[%emt 0:00:02]} Nf6 {[%emt 0:00:03]} 4. d3 {[%emt 0:00:12]} g6 {[%emt 0:00:03]} 5. Be2 {[%emt 0:00:22]} Bg7 {[%emt 0:00:02]} 6. O-O {[%emt 0:00:02]} O-O {[%emt 0:00:03]} 7. Nbd2 {[%emt 0:00:10]} e5 {[%emt 0:00:36]} 8. Re1 {[%emt 0:00:29]} Nc6 {[%emt 0:00:03]} 9. Nf1 {[%emt 0:00:07]} d5 {[%emt 0:00:08]} 10. Ng3 {[%emt 0:00:36]} Re8 {[%emt 0:00:23]} 11. Bg5 {[%emt 0:00:34]} h6 {[%emt 0:00:05]} 12. Bd2 {[%emt 0:00:34]} Be6 {[%emt 0:00:13]} 13. Qc2 {[%emt 0:00:43]} Qd7 {[%emt 0:00:35]} 14. Rad1 {[%emt 0:00:04]} Rad8 {[%emt 0:00:02]} 15. Bc1 {[%emt 0:00:17]} b6 {[%emt 0:00:58]} 16. h3 {[%emt 0:00:54]} Qc7 {[%emt 0:00:57]} 17. Bf1 {[%emt 0:00:31]} d4 {[%emt 0:01:01]} 18. Bd2 {[%emt 0:02:26]} dxc3 {[%emt 0:02:10]} 19. bxc3 {[%emt 0:00:05]} c4 {[%emt 0:01:04]} 20. dxc4 {[%emt 0:03:07]} Na5 {[%emt 0:00:02]} 21. Bc1 {[%emt 0:00:52]} Nxc4 {[%emt 0:00:54]} 22. Rxd8 {[%emt 0:00:05]} Rxd8 {[%emt 0:00:02]} 23. Rd1 {[%emt 0:00:05]} Rc8 {[%emt 0:00:11]} 24. Be2 {[%emt 0:01:16]} Kh7 {[%emt 0:00:30]} 25. Nf1 {[%emt 0:01:37]} Nd6 {[%emt 0:00:13]} 26. Ng3 {[%emt 0:00:39]} Nc4 {[%emt 0:01:18]} 27. Nf1 {[%emt 0:00:34]} Qc6 {[%emt 0:01:49]} 28. Bxc4 {[%emt 0:00:51]} Qxc4 {[%emt 0:00:04]} 29. Nxe5 {[%emt 0:00:01]} Qxe4 {[%emt 0:00:12]} 30. Nd3 {[%emt 0:00:19]} Nd5 {[%emt 0:00:48]} 31. Ng3 {[%emt 0:01:04]} Qc4 {[%emt 0:00:16]} 32. Bb2 {[%emt 0:00:34]} Nxc3 {[%emt 0:00:22]} 33. Rc1 {[%emt 0:00:26]} Nxa2 {[%emt 0:00:40]} 34. Qxc4 {[%emt 0:00:03]} Bxc4 {[%emt 0:00:11]} 35. Ra1 {[%emt 0:00:08]} Bxd3 {[%emt 0:00:18]} 36. Bxg7 {[%emt 0:00:10]} Kxg7 {[%emt 0:00:04]} 37. Rxa2 {[%emt 0:00:01]} a5 {[%emt 0:00:05]} 38. Rd2 {[%emt 0:00:09]} Rc3 {[%emt 0:00:14]} 39. Nf1 {[%emt 0:00:14]} Bxf1 {[%emt 0:00:04]} 40. Kxf1 {[%emt 0:00:00]} b5 {[%emt 0:00:06]} 41. Ke2 {[%emt 0:00:07]} a4 {[%emt 0:00:08]} 42. Rb2 {[%emt 0:00:24]} Rb3 {[%emt 0:00:04]} 43. Ra2 {[%emt 0:00:17]} a3 {[%emt 0:00:11]} 44. Kd1 {[%emt 0:00:05]} b4 {[%emt 0:00:02]} 45. Kc2 {[%emt 0:00:03]} Rc3+ {[%emt 0:00:01]} 46. Kd2 {[%emt 0:00:02]} Kf6 {[%emt 0:00:04]} 0-1

[Event "European Women Rapid-ch 2023"]
[Site "Monaco"]
[Date "2024.01.13"]
[Round "1.13"]
[White "Batsiashvili, Nino"]
[Black "Nicoara, Malina"]
[Result "1-0"]
[ECO "A55"]
[WhiteElo "2451"]
[BlackElo "2054"]
[Annotator "RC"]
[PlyCount "107"]
[EventDate "2023.12.19"]
[EventType "swiss"]
[EventCountry "MNC"]
[SourceTitle "playchess.com"]
[Source "ChessBase"]
[SourceQuality "1"]
[TimeControl "900+10"]

1. d4 {[%emt 0:00:02]} Nf6 {[%emt 0:00:02]} 2. c4 {[%emt 0:00:01]} d6 {[%emt 0:00:03]} 3. Nc3 {[%emt 0:00:13]} e5 {[%emt 0:00:01]} 4. Nf3 {[%emt 0:01:13]} Nbd7 {[%emt 0:00:04]} 5. e4 {[%emt 0:00:12]} c6 {[%emt 0:00:03]} 6. Be2 {[%emt 0:00:03]} Be7 {[%emt 0:00:03]} 7. O-O {[%emt 0:00:03]} O-O {[%emt 0:00:02]} 8. Qc2 {[%emt 0:00:09]} Qc7 {[%emt 0:00:04]} 9. Rd1 {[%emt 0:00:04]} a6 {[%emt 0:00:34]} 10. a4 {[%emt 0:00:22]} a5 {[%emt 0:00:04]} 11. b3 {[%emt 0:00:02]} Re8 {[%emt 0:00:03]} 12. Bb2 {[%emt 0:00:53]} Bf8 {[%emt 0:00:23]} 13. Ba3 {[%emt 0:00:22]} exd4 {[%emt 0:03:39]} 14. Nxd4 {[%emt 0:00:16]} Nc5 {[%emt 0:00:01]} 15. Bf3 {[%emt 0:00:05]} g6 {[%emt 0:00:33]} 16. Re1 {[%emt 0:00:32]} Bg4 {[%emt 0:00:44]} 17. h3 {[%emt 0:01:01]} Bxf3 18. Nxf3 {[%emt 0:00:01]} Nfd7 {[%emt 0:00:31]} 19. Rad1 {[%emt 0:00:14]} Ne5 {[%emt 0:00:07]} 20. Nd4 {[%emt 0:00:38]} Bh6 {[%emt 0:01:03]} 21. Bb2 {[%emt 0:01:22]} Rad8 {[%emt 0:00:03]} 22. Nce2 {[%emt 0:01:17]} Qe7 {[%emt 0:03:35]} 23. Bc3 {[%emt 0:00:42]} Qc7 {[%emt 0:00:58]} 24. Ng3 {[%emt 0:00:19]} Ne6 {[%emt 0:00:10]} 25. Nxe6 {[%emt 0:00:19]} Rxe6 {[%emt 0:00:02]} 26. Ne2 {[%emt 0:00:28]} Nd7 {[%emt 0:00:24]} 27. Nd4 {[%emt 0:00:26]} Ree8 {[%emt 0:00:06]} 28. Nf3 {[%emt 0:01:18]} Nc5 {[%emt 0:00:32]} 29. Nh2 {[%emt 0:00:14]} Nd7 {[%emt 0:02:05]} 30. Ng4 {[%emt 0:00:04]} Bg7 {[%emt 0:00:01]} 31. Qd2 {[%emt 0:01:35]} Ne5 {[%emt 0:00:49]} 32. Bxa5 {[%emt 0:00:08]} b6 {[%emt 0:00:01]} 33. Bc3 {[%emt 0:00:23]} Nxg4 {[%emt 0:00:01]} 34. hxg4 {[%emt 0:00:02]} Qc8 {[%emt 0:00:03]} 35. Bxg7 {[%emt 0:00:03]} Kxg7 {[%emt 0:00:02]} 36. Qd4+ {[%emt 0:00:07]} Kg8 {[%emt 0:00:12]} 37. Qxb6 {[%emt 0:00:05]} Qxg4 {[%emt 0:00:02]} 38. Qxc6 {[%emt 0:00:08]} Re6 {[%emt 0:01:48]} 39. c5 {[%emt 0:00:57]} d5 {[%emt 0:00:25]} 40. Qc7 {[%emt 0:00:12]} Rde8 {[%emt 0:00:17]} 41. f3 {[%emt 0:00:23]} Qh4 {[%emt 0:00:09]} 42. Qh2 {[%emt 0:01:14]} Qg5 {[%emt 0:00:19]} 43. Rxd5 {[%emt 0:01:12]} Qxd5 {[%emt 0:00:17]} 44. exd5 {[%emt 0:00:01]} Rxe1+ {[%emt 0:00:02]} 45. Kf2 {[%emt 0:00:01]} R1e2+ {[%emt 0:00:14]} 46. Kg3 {[%emt 0:00:03]} R8e5 {[%emt 0:00:35]} 47. Qh4 {[%emt 0:00:48]} Rxd5 {[%emt 0:00:40]} 48. b4 {[%emt 0:00:34]} Kg7 {[%emt 0:00:10]} 49. c6 {[%emt 0:00:17]} h6 {[%emt 0:00:33]} 50. b5 {[%emt 0:00:28]} Rdd2 {[%emt 0:00:15]} 51. Qh3 {[%emt 0:00:03]} Re5 {[%emt 0:00:36]} 52. c7 {[%emt 0:00:12]} Rg5+ {[%emt 0:00:00]} 53. Kh2 {[%emt 0:00:01]} Rc2 {[%emt 0:00:01]} 54. c8=Q {[%emt 0:00:06]} 1-0

[Event "European Women Rapid-ch 2023"]
[Site "Monaco"]
[Date "2024.01.13"]
[Round "1.14"]
[White "Caku, Kler"]
[Black "Vega Gutierrez, Sabrina"]
[Result "0-1"]
[ECO "B33"]
[WhiteElo "1744"]
[BlackElo "2378"]
[Annotator "ChessBase"]
[PlyCount "120"]
[EventDate "2023.12.19"]
[EventType "swiss"]
[EventCountry "MNC"]
[SourceTitle "playchess.com"]
[Source "ChessBase"]
[SourceQuality "1"]
[TimeControl "900+10"]

1. e4 {[%emt 0:00:01]} c5 {[%emt 0:00:02]} 2. Nf3 {[%emt 0:00:02]} Nc6 {[%emt 0:00:02]} 3. d4 {[%emt 0:00:02]} cxd4 {[%emt 0:00:02]} 4. Nxd4 {[%emt 0:00:01]} Nf6 {[%emt 0:00:02]} 5. Nc3 {[%emt 0:00:02]} e5 {[%emt 0:00:02]} 6. Ndb5 {[%emt 0:00:01]} d6 {[%emt 0:00:02]} 7. Bg5 {[%emt 0:00:02]} a6 {[%emt 0:00:02]} 8. Na3 {[%emt 0:00:02]} b5 {[%emt 0:00:03]} 9. Nd5 {[%emt 0:00:02]} Be7 {[%emt 0:00:05]} 10. Bxf6 {[%emt 0:00:03]} Bxf6 {[%emt 0:00:03]} 11. c3 {[%emt 0:00:01]} Bb7 {[%emt 0:01:00]} 12. Nc2 {[%emt 0:00:03]} Nb8 {[%emt 0:00:19]} 13. Nce3 {[%emt 0:00:14]} O-O {[%emt 0:00:26]} 14. Be2 {[%emt 0:01:47]} Nd7 {[%emt 0:00:05]} 15. O-O {[%emt 0:02:04]} Bg5 {[%emt 0:00:10]} 16. Nf5 {[%emt 0:00:52]} Nc5 {[%emt 0:00:43]} 17. Ng3 {[%emt 0:02:12]} g6 {[%emt 0:00:15]} 18. Bf3 {[%emt 0:00:29]} h5 {[%emt 0:00:44]} 19. Re1 {[%emt 0:00:58]} h4 {[%emt 0:01:34]} 20. Nf1 {[%emt 0:00:37]} Kg7 {[%emt 0:00:03]} 21. Nb4 {[%emt 0:01:20]} a5 {[%emt 0:00:10]} 22. Nd3 {[%emt 0:00:09]} Na4 {[%emt 0:02:05]} 23. Qe2 {[%emt 0:01:47]} Ba6 {[%emt 0:01:09]} 24. Ne3 {[%emt 0:00:27]} Nb6 {[%emt 0:03:03]} 25. Rad1 {[%emt 0:01:10]} Qc7 {[%emt 0:00:24]} 26. g3 {[%emt 0:01:07]} Rad8 {[%emt 0:00:14]} 27. Bg2 {[%emt 0:00:22]} hxg3 {[%emt 0:00:50]} 28. hxg3 {[%emt 0:00:11]} Qc8 {[%emt 0:02:23]} 29. f4 {[%emt 0:00:26]} exf4 {[%emt 0:00:04]} 30. gxf4 {[%emt 0:00:01]} Bh4 {[%emt 0:00:02]} 31. Rf1 {[%emt 0:00:01]} Rde8 {[%emt 0:00:16]} 32. f5 {[%emt 0:00:39]} Qd8 {[%emt 0:00:55]} 33. Qg4 {[%emt 0:00:33]} Qg5 {[%emt 0:00:05]} 34. Rf4 {[%emt 0:01:39]} Rh8 {[%emt 0:00:23]} 35. Nf2 {[%emt 0:00:27]} Rd8 {[%emt 0:01:56]} 36. Nd5 {[%emt 0:00:20]} Nxd5 {[%emt 0:00:03]} 37. Rxd5 {[%emt 0:00:02]} Qe7 {[%emt 0:00:54]} 38. Nh3 {[%emt 0:01:00]} Bf6 {[%emt 0:00:03]} 39. fxg6 {[%emt 0:00:10]} fxg6 {[%emt 0:00:03]} 40. Rf1 {[%emt 0:00:12]} Bc8 {[%emt 0:00:09]} 41. Qf3 {[%emt 0:00:09]} Rdf8 {[%emt 0:00:07]} 42. Qd3 {[%emt 0:00:06]} Be5 {[%emt 0:00:20]} 43. Rxf8 {[%emt 0:00:14]} Rxf8 {[%emt 0:00:05]} 44. Nf2 {[%emt 0:00:06]} Qh4 {[%emt 0:00:04]} 45. Qe2 {[%emt 0:00:12]} Qh2+ {[%emt 0:00:09]} 46. Kf1 {[%emt 0:00:04]} Bg3 {[%emt 0:00:03]} 47. Bf3 {[%emt 0:00:13]} Bxf2 {[%emt 0:00:40]} 48. Qxf2 {[%emt 0:00:07]} Qh3+ {[%emt 0:00:04]} 49. Ke2 {[%emt 0:00:06]} Rxf3 {[%emt 0:00:03]} 50. Qd4+ {[%emt 0:00:23]} Kg8 {[%emt 0:00:09]} 51. Rg5 {[%emt 0:00:08]} Rg3 {[%emt 0:00:12]} 52. Qd5+ {[%emt 0:00:11]} Kg7 {[%emt 0:00:19]} 53. Qd4+ {[%emt 0:00:11]} Kh7 {[%emt 0:00:11]} 54. Qa7+ {[%emt 0:00:09]} Kh6 {[%emt 0:00:12]} 55. Rxg3 {[%emt 0:00:09]} Qxg3 {[%emt 0:00:02]} 56. Qd4 {[%emt 0:00:11]} Bg4+ {[%emt 0:00:04]} 57. Kd2 {[%emt 0:00:04]} Qe5 {[%emt 0:00:05]} 58. Qg1 {[%emt 0:00:18]} Bh5 {[%emt 0:00:02]} 59. Kd3 {[%emt 0:00:09]} Qc5 {[%emt 0:00:22]} 60. Qc1+ {[%emt 0:00:10]} g5 {[%emt 0:00:02]} 0-1

[Event "European Women Rapid-ch 2023"]
[Site "Monaco"]
[Date "2024.01.13"]
[Round "1.15"]
[White "Zimina, Olga"]
[Black "Jimenez Fernandez, Rebeca"]
[Result "1-0"]
[ECO "D02"]
[WhiteElo "2291"]
[BlackElo "2051"]
[Annotator "RC"]
[PlyCount "103"]
[EventDate "2023.12.19"]
[EventType "swiss"]
[EventCountry "MNC"]
[SourceTitle "playchess.com"]
[Source "ChessBase"]
[SourceQuality "1"]
[TimeControl "900+10"]

1. d4 {[%emt 0:00:02]} Nf6 {[%emt 0:00:01]} 2. Nf3 {[%emt 0:00:02]} e6 {[%emt 0:00:00]} 3. g3 {[%emt 0:00:02]} d5 {[%emt 0:00:01]} 4. Bg2 {[%emt 0:00:02]} Be7 {[%emt 0:00:01]} 5. O-O {[%emt 0:00:02]} O-O {[%emt 0:00:02]} 6. b3 {[%emt 0:00:01]} c5 {[%emt 0:00:11]} 7. Bb2 {[%emt 0:00:09]} b6 {[%emt 0:00:07]} 8. c4 {[%emt 0:00:29]} Bb7 {[%emt 0:00:10]} 9. Nbd2 {[%emt 0:03:01]} Nc6 {[%emt 0:00:58]} 10. cxd5 {[%emt 0:00:29]} Nxd5 {[%emt 0:01:07]} 11. dxc5 {[%emt 0:03:30]} Bxc5 {[%emt 0:00:24]} 12. a3 {[%emt 0:00:01]} Rc8 {[%emt 0:03:39]} 13. e4 {[%emt 0:00:24]} Nc7 {[%emt 0:02:42]} 14. b4 {[%emt 0:00:26]} Be7 {[%emt 0:00:47]} 15. Qa4 {[%emt 0:01:02]} Bf6 {[%emt 0:03:22]} 16. Bxf6 {[%emt 0:00:03]} Qxf6 {[%emt 0:00:07]} 17. Rac1 {[%emt 0:00:03]} b5 {[%emt 0:00:52]} 18. Qc2 {[%emt 0:00:42]} e5 {[%emt 0:00:51]} 19. Nb3 {[%emt 0:02:07]} Ne6 {[%emt 0:00:08]} 20. Qe2 {[%emt 0:00:37]} a6 {[%emt 0:00:19]} 21. Bh3 {[%emt 0:00:20]} Rcd8 {[%emt 0:01:18]} 22. Bxe6 {[%emt 0:00:19]} fxe6 {[%emt 0:00:07]} 23. Nc5 {[%emt 0:00:30]} Ba8 {[%emt 0:00:32]} 24. Rc3 {[%emt 0:00:51]} Nd4 {[%emt 0:00:05]} 25. Nxd4 {[%emt 0:00:02]} exd4 {[%emt 0:00:02]} 26. Rd3 {[%emt 0:00:01]} e5 {[%emt 0:00:07]} 27. f3 {[%emt 0:00:08]} Rc8 {[%emt 0:00:36]} 28. Nd7 {[%emt 0:00:16]} Qc6 {[%emt 0:00:43]} 29. Nxf8 {[%emt 0:00:09]} Kxf8 {[%emt 0:00:02]} 30. f4 {[%emt 0:00:38]} Qxe4 {[%emt 0:00:10]} 31. fxe5+ {[%emt 0:00:03]} Ke7 {[%emt 0:00:08]} 32. Qxe4 {[%emt 0:00:12]} Bxe4 {[%emt 0:00:01]} 33. Rxd4 {[%emt 0:00:02]} Bb7 {[%emt 0:00:13]} 34. Rfd1 {[%emt 0:00:59]} Ke6 {[%emt 0:00:03]} 35. Rd7 {[%emt 0:00:07]} Ba8 {[%emt 0:00:12]} 36. R1d2 {[%emt 0:00:33]} Rc1+ {[%emt 0:00:24]} 37. Kf2 {[%emt 0:00:02]} Rh1 {[%emt 0:00:08]} 38. R7d6+ {[%emt 0:01:20]} Kxe5 {[%emt 0:00:04]} 39. Rxa6 {[%emt 0:00:01]} Bd5 {[%emt 0:00:27]} 40. Ke3 {[%emt 0:00:24]} Bc4 {[%emt 0:00:18]} 41. Ra7 {[%emt 0:00:02]} Re1+ {[%emt 0:00:03]} 42. Kf2 {[%emt 0:00:01]} Rh1 {[%emt 0:00:06]} 43. Kg2 {[%emt 0:00:04]} Ra1 {[%emt 0:00:06]} 44. Rxg7 {[%emt 0:00:08]} Rxa3 {[%emt 0:00:19]} 45. Rxh7 {[%emt 0:00:01]} Rb3 {[%emt 0:00:15]} 46. Re7+ {[%emt 0:00:08]} Kf6 {[%emt 0:00:04]} 47. Rc7 {[%emt 0:00:31]} Rxb4 {[%emt 0:00:04]} 48. Rc5 {[%emt 0:00:01]} Rb1 {[%emt 0:00:22]} 49. Rd6+ {[%emt 0:00:03]} Ke7 {[%emt 0:00:01]} 50. Rh6 {[%emt 0:00:05]} Rd1 {[%emt 0:00:28]} 51. Rc7+ {[%emt 0:00:02]} Kd8 {[%emt 0:00:04]} 52. Ra7 {[%emt 0:00:05]} 1-0

[Event "European Women Rapid-ch 2023"]
[Site "Monaco"]
[Date "2024.01.13"]
[Round "1.16"]
[White "Stangl, Anita"]
[Black "Daulyte-Cornette, Deimante"]
[Result "0-1"]
[ECO "B32"]
[WhiteElo "2055"]
[BlackElo "2372"]
[Annotator "ChessBase"]
[PlyCount "52"]
[EventDate "2023.12.19"]
[EventType "swiss"]
[EventCountry "MNC"]
[SourceTitle "playchess.com"]
[Source "ChessBase"]
[SourceQuality "1"]
[TimeControl "900+10"]

1. e4 {[%emt 0:00:10]} c5 {[%emt 0:00:02]} 2. Nf3 {[%emt 0:00:00]} Nc6 {[%emt 0:00:03]} 3. d4 {[%emt 0:00:04]} cxd4 {[%emt 0:00:04]} 4. Nxd4 {[%emt 0:00:00]} e5 {[%emt 0:00:02]} 5. Nf3 {[%emt 0:01:28]} Nf6 {[%emt 0:00:23]} 6. Nbd2 {[%emt 0:00:10]} Bc5 {[%emt 0:01:04]} 7. Bc4 {[%emt 0:00:09]} O-O {[%emt 0:00:31]} 8. c3 {[%emt 0:00:23]} d6 {[%emt 0:00:31]} 9. O-O {[%emt 0:00:36]} Bg4 {[%emt 0:00:29]} 10. h3 {[%emt 0:00:44]} Bh5 {[%emt 0:00:09]} 11. Be2 {[%emt 0:00:45]} Bg6 {[%emt 0:00:42]} 12. Bd3 {[%emt 0:01:18]} d5 {[%emt 0:01:24]} 13. Qc2 {[%emt 0:00:19]} Rc8 {[%emt 0:00:58]} 14. exd5 {[%emt 0:00:38]} Nb4 {[%emt 0:01:02]} 15. cxb4 {[%emt 0:00:04]} Bxf2+ {[%emt 0:00:06]} 16. Rxf2 {[%emt 0:00:02]} Rxc2 {[%emt 0:00:02]} 17. Bxc2 {[%emt 0:00:01]} Bxc2 {[%emt 0:00:03]} 18. Nc4 {[%emt 0:01:24]} e4 {[%emt 0:01:15]} 19. Nfe5 {[%emt 0:04:25]} Bd3 {[%emt 0:01:38]} 20. Bg5 {[%emt 0:01:10]} Qxd5 {[%emt 0:00:23]} 21. Bxf6 {[%emt 0:00:23]} gxf6 {[%emt 0:00:30]} 22. Ng4 {[%emt 0:00:24]} Qxc4 {[%emt 0:00:08]} 23. Nxf6+ {[%emt 0:00:07]} Kh8 {[%emt 0:00:40]} 24. Rf5 {[%emt 0:01:04]} e3 {[%emt 0:00:33]} 25. Rc5 {[%emt 0:00:31]} Qxb4 {[%emt 0:01:01]} 26. Rac1 {[%emt 0:00:08]} e2 {[%emt 0:00:08]} 0-1